[Event "Titled Tuesday Blitz April 26 Early 2022"]
[White "Andrews, Todd"]
[Black "Sanchez Alvares, Kelvin Antonio"]
[WhiteFideId "2012456"]
[BlackFideId "3906680"]
[WhiteElo "2350"]
[BlackElo "2193"]
[Result "1-0"]
[Round "09"]
[TimeControl "180+1"]
[Date "2022.04.26"]
[WhiteClock "0:00:22"]
[BlackClock "0:00:31"]

1. e4 {[%clk 0:02:54]}  c5 {[%clk 0:02:57]} 2. Nf3 {[%clk 0:02:54]}  e6 {[%clk 0:02:57]} 3. d3 {[%clk 0:02:53]}  d5 {[%clk 0:02:55]} 4. Nbd2 {[%clk 0:02:54]}  Nf6 {[%clk 0:02:55]} 5. g3 {[%clk 0:02:54]}  Nc6 {[%clk 0:02:54]} 6. Bg2 {[%clk 0:02:54]}  Be7 {[%clk 0:02:54]} 7. O-O {[%clk 0:02:55]}  b5 {[%clk 0:02:54]} 8. e5 {[%clk 0:02:52]}  Nd7 {[%clk 0:02:53]} 9. Re1 {[%clk 0:02:52]}  g5 {[%clk 0:02:53]} 10. h3 {[%clk 0:02:44]}  h5 {[%clk 0:02:52]} 11. Nf1 {[%clk 0:02:42]}  g4 {[%clk 0:02:51]} 12. hxg4 {[%clk 0:02:42]}  hxg4 {[%clk 0:02:52]} 13. N3h2 {[%clk 0:02:42]}  Ncxe5 {[%clk 0:02:50]} 14. Nxg4 {[%clk 0:02:41]}  Nxg4 {[%clk 0:02:50]} 15. Qxg4 {[%clk 0:02:41]}  Nf6 {[%clk 0:02:49]} 16. Qe2 {[%clk 0:02:34]}  Bb7 {[%clk 0:02:45]} 17. a4 {[%clk 0:02:25]}  b4 {[%clk 0:02:44]} 18. a5 {[%clk 0:02:23]}  a6 {[%clk 0:02:42]} 19. Bf4 {[%clk 0:02:19]}  Bd6 {[%clk 0:02:25]} 20. Be5 {[%clk 0:02:11]}  Bxe5 {[%clk 0:02:25]} 21. Qxe5 {[%clk 0:02:09]}  Rh5 {[%clk 0:02:25]} 22. Qf4 {[%clk 0:02:04]}  Rf5 {[%clk 0:02:24]} 23. Qh4 {[%clk 0:02:03]}  Qe7 {[%clk 0:02:20]} 24. Ne3 {[%clk 0:02:00]}  Rh5 {[%clk 0:02:19]} 25. Qf4 {[%clk 0:02:00]}  O-O-O {[%clk 0:02:11]} 26. Nf5 {[%clk 0:01:36]}  Qc7 {[%clk 0:02:02]} 27. Nd6+ {[%clk 0:01:28]}  Qxd6 {[%clk 0:02:02]} 28. Qxf6 {[%clk 0:01:28]}  Rf5 {[%clk 0:02:02]} 29. Qg7 {[%clk 0:01:25]}  Qf8 {[%clk 0:02:01]} 30. Qxf8 {[%clk 0:01:10]}  Rxf8 {[%clk 0:02:01]} 31. c3 {[%clk 0:01:02]}  bxc3 {[%clk 0:01:32]} 32. bxc3 {[%clk 0:01:01]}  d4 {[%clk 0:01:32]} 33. cxd4 {[%clk 0:00:51]}  cxd4 {[%clk 0:01:29]} 34. Rec1+ {[%clk 0:00:50]}  Kb8 {[%clk 0:01:27]} 35. Rab1 {[%clk 0:00:44]}  Rb5 {[%clk 0:01:27]} 36. Rxb5 {[%clk 0:00:42]}  axb5 {[%clk 0:01:27]} 37. Rc5 {[%clk 0:00:41]}  Ba6 {[%clk 0:01:18]} 38. Rc6 {[%clk 0:00:36]}  Ka7 {[%clk 0:01:11]} 39. Rc7+ {[%clk 0:00:28]}  Kb8 {[%clk 0:01:11]} 40. Rc6 {[%clk 0:00:28]}  Ka7 {[%clk 0:01:10]} 41. Rd6 {[%clk 0:00:24]}  b4 {[%clk 0:00:41]} 42. Rd7+ {[%clk 0:00:22]}  Kb8 {[%clk 0:00:40]} 43. Rxd4 {[%clk 0:00:22]}  Kc7 {[%clk 0:00:32]} 44. Rxb4 {[%clk 0:00:22]}  Bxd3 {[%clk 0:00:32]} 45. Rb7+ {[%clk 0:00:22]}  Kd6 {[%clk 0:00:31]} 46. a6 {[%clk 0:00:22]} 1-0


[Site "https://www.chess.com"]

[Event "Titled Tuesday Blitz April 26 Early 2022"]
[White "Aradhya, Garg"]
[Black "Sarana, Alexey"]
[WhiteFideId "25006746"]
[BlackFideId "24133795"]
[WhiteElo "2169"]
[BlackElo "2666"]
[Result "0-1"]
[Round "09"]
[TimeControl "180+1"]
[Date "2022.04.26"]
[WhiteClock "0:00:12"]
[BlackClock "0:01:28"]

1. d4 {[%clk 0:02:59]}  Nf6 {[%clk 0:03:00]} 2. c4 {[%clk 0:02:59]}  e6 {[%clk 0:03:00]} 3. Nf3 {[%clk 0:02:59]}  d5 {[%clk 0:03:00]} 4. Nc3 {[%clk 0:02:59]}  Bb4 {[%clk 0:03:01]} 5. Qa4+ {[%clk 0:02:57]}  Nc6 {[%clk 0:03:00]} 6. Bd2 {[%clk 0:02:57]}  O-O {[%clk 0:03:00]} 7. e3 {[%clk 0:02:56]}  Bd7 {[%clk 0:02:55]} 8. Qc2 {[%clk 0:02:55]}  Bd6 {[%clk 0:02:54]} 9. c5 {[%clk 0:02:47]}  Be7 {[%clk 0:02:53]} 10. a3 {[%clk 0:02:46]}  a5 {[%clk 0:02:53]} 11. Bb5 {[%clk 0:02:39]}  Qe8 {[%clk 0:02:43]} 12. O-O {[%clk 0:02:34]}  h6 {[%clk 0:02:36]} 13. Rfe1 {[%clk 0:02:15]}  b6 {[%clk 0:02:19]} 14. Bxc6 {[%clk 0:02:09]}  Bxc6 {[%clk 0:02:19]} 15. b4 {[%clk 0:02:09]}  bxc5 {[%clk 0:02:18]} 16. bxc5 {[%clk 0:02:08]}  Nd7 {[%clk 0:02:18]} 17. Rab1 {[%clk 0:01:56]}  f5 {[%clk 0:02:15]} 18. Ne2 {[%clk 0:01:39]}  Bf6 {[%clk 0:02:15]} 19. Nf4 {[%clk 0:01:15]}  g5 {[%clk 0:02:15]} 20. Nd3 {[%clk 0:01:14]}  g4 {[%clk 0:02:15]} 21. Nfe5 {[%clk 0:01:14]}  Nxe5 {[%clk 0:02:14]} 22. Nxe5 {[%clk 0:01:12]}  Bxe5 {[%clk 0:02:12]} 23. dxe5 {[%clk 0:01:11]}  d4 {[%clk 0:02:01]} 24. exd4 {[%clk 0:01:10]}  f4 {[%clk 0:02:01]} 25. Rb3 {[%clk 0:00:55]}  Qh5 {[%clk 0:02:00]} 26. Qd3 {[%clk 0:00:49]}  Rf5 {[%clk 0:01:56]} 27. h3 {[%clk 0:00:38]}  f3 {[%clk 0:01:53]} 28. hxg4 {[%clk 0:00:37]}  Qxg4 {[%clk 0:01:52]} 29. g3 {[%clk 0:00:37]}  Rh5 {[%clk 0:01:50]} 30. Qf1 {[%clk 0:00:36]}  Rh3 {[%clk 0:01:48]} 31. Bf4 {[%clk 0:00:12]}  Qh5 {[%clk 0:01:28]} 0-1


[Site "https://www.chess.com"]

[Event "Titled Tuesday Blitz April 26 Early 2022"]
[White "Belenkaya, Dina"]
[Black "Stevens, Christian"]
[WhiteFideId "24142654"]
[BlackFideId "2604450"]
[WhiteElo "2196"]
[BlackElo "2535"]
[Result "0-1"]
[Round "09"]
[TimeControl "180+1"]
[Date "2022.04.26"]
[WhiteClock "0:00:04"]
[BlackClock "0:00:18"]

1. e4 {[%clk 0:03:00]}  c5 {[%clk 0:02:58]} 2. Nc3 {[%clk 0:02:58]}  e6 {[%clk 0:02:56]} 3. Nf3 {[%clk 0:02:54]}  a6 {[%clk 0:02:56]} 4. d4 {[%clk 0:02:54]}  cxd4 {[%clk 0:02:56]} 5. Nxd4 {[%clk 0:02:55]}  Qc7 {[%clk 0:02:54]} 6. Be2 {[%clk 0:02:53]}  Nf6 {[%clk 0:02:53]} 7. O-O {[%clk 0:02:53]}  Nc6 {[%clk 0:02:54]} 8. Nxc6 {[%clk 0:02:51]}  bxc6 {[%clk 0:02:38]} 9. Re1 {[%clk 0:02:49]}  e5 {[%clk 0:02:19]} 10. b3 {[%clk 0:02:45]}  Be7 {[%clk 0:02:07]} 11. Bb2 {[%clk 0:02:42]}  O-O {[%clk 0:02:05]} 12. Bf1 {[%clk 0:02:32]}  Bb7 {[%clk 0:01:45]} 13. Qd3 {[%clk 0:02:31]}  d5 {[%clk 0:01:31]} 14. Qg3 {[%clk 0:02:26]}  d4 {[%clk 0:01:27]} 15. Na4 {[%clk 0:02:25]}  c5 {[%clk 0:01:25]} 16. Ba3 {[%clk 0:02:25]}  Nxe4 {[%clk 0:01:21]} 17. Qd3 {[%clk 0:02:14]}  Nf6 {[%clk 0:01:17]} 18. Qf5 {[%clk 0:02:11]}  Bd6 {[%clk 0:01:12]} 19. f4 {[%clk 0:02:09]}  Bc8 {[%clk 0:00:46]} 20. Qg5 {[%clk 0:01:22]}  h6 {[%clk 0:00:44]} 21. Qh4 {[%clk 0:01:20]}  e4 {[%clk 0:00:44]} 22. Bc4 {[%clk 0:00:46]}  Bd7 {[%clk 0:00:31]} 23. Rf1 {[%clk 0:00:46]}  Rfe8 {[%clk 0:00:26]} 24. Qg3 {[%clk 0:00:42]}  Bb5 {[%clk 0:00:25]} 25. Nb2 {[%clk 0:00:35]}  e3 {[%clk 0:00:25]} 26. Rae1 {[%clk 0:00:27]}  Ne4 {[%clk 0:00:25]} 27. Qg4 {[%clk 0:00:18]}  Nd2 {[%clk 0:00:25]} 28. Kh1 {[%clk 0:00:11]}  Nxf1 {[%clk 0:00:22]} 29. Rxf1 {[%clk 0:00:12]}  Qa5 {[%clk 0:00:19]} 30. Bxf7+ {[%clk 0:00:03]}  Kxf7 {[%clk 0:00:20]} 31. Qf5+ {[%clk 0:00:04]}  Kg8 {[%clk 0:00:20]} 32. Qd5+ {[%clk 0:00:05]}  Kh8 {[%clk 0:00:19]} 33. Qxd6 {[%clk 0:00:05]}  Bxf1 {[%clk 0:00:19]} 34. Bxc5 {[%clk 0:00:04]}  Qe1 {[%clk 0:00:19]} 35. Nd3 {[%clk 0:00:04]}  Bxd3# {[%clk 0:00:18]} 0-1


[Site "https://www.chess.com"]

[Event "Titled Tuesday Blitz April 26 Early 2022"]
[White "Bortnyk, Olexandr"]
[Black "Andreikin, Dmitry"]
[WhiteFideId "14120828"]
[BlackFideId "4158814"]
[WhiteElo "2723"]
[BlackElo "2736"]
[Result "1-0"]
[Round "09"]
[TimeControl "180+1"]
[Date "2022.04.26"]
[WhiteClock "0:00:10"]
[BlackClock "0:00:09"]

1. d4 {[%clk 0:02:57]}  Nf6 {[%clk 0:02:59]} 2. Nc3 {[%clk 0:02:56]}  d5 {[%clk 0:02:57]} 3. Bf4 {[%clk 0:02:56]}  e6 {[%clk 0:02:56]} 4. Nb5 {[%clk 0:02:56]}  Na6 {[%clk 0:02:53]} 5. e3 {[%clk 0:02:56]}  c6 {[%clk 0:02:53]} 6. Nc3 {[%clk 0:02:56]}  b6 {[%clk 0:02:53]} 7. Nf3 {[%clk 0:02:56]}  Be7 {[%clk 0:02:52]} 8. Ne5 {[%clk 0:02:55]}  Nb8 {[%clk 0:02:51]} 9. Bd3 {[%clk 0:02:55]}  O-O {[%clk 0:02:51]} 10. Qf3 {[%clk 0:02:55]}  c5 {[%clk 0:02:49]} 11. O-O-O {[%clk 0:02:34]}  Ba6 {[%clk 0:02:40]} 12. Nc6 {[%clk 0:02:02]}  Nxc6 {[%clk 0:02:38]} 13. Bxa6 {[%clk 0:02:03]}  cxd4 {[%clk 0:01:12]} 14. exd4 {[%clk 0:02:04]}  Qd7 {[%clk 0:01:11]} 15. a3 {[%clk 0:02:03]}  Na5 {[%clk 0:01:09]} 16. Rhe1 {[%clk 0:02:00]}  Rfc8 {[%clk 0:01:08]} 17. Bxc8 {[%clk 0:01:46]}  Rxc8 {[%clk 0:01:09]} 18. Bg5 {[%clk 0:01:35]}  Nc4 {[%clk 0:01:08]} 19. Bxf6 {[%clk 0:01:35]}  Bxf6 {[%clk 0:01:09]} 20. Qg3 {[%clk 0:01:25]}  h6 {[%clk 0:01:07]} 21. Rd3 {[%clk 0:01:22]}  b5 {[%clk 0:01:06]} 22. Nd1 {[%clk 0:01:12]}  b4 {[%clk 0:01:04]} 23. Kb1 {[%clk 0:00:53]}  Qa4 {[%clk 0:01:04]} 24. Ne3 {[%clk 0:00:46]}  bxa3 {[%clk 0:01:00]} 25. Nxc4 {[%clk 0:00:43]}  Rxc4 {[%clk 0:00:55]} 26. Qb8+ {[%clk 0:00:22]}  Kh7 {[%clk 0:00:54]} 27. Qb3 {[%clk 0:00:23]}  Qa5 {[%clk 0:00:48]} 28. c3 {[%clk 0:00:20]}  axb2 {[%clk 0:00:48]} 29. Kxb2 {[%clk 0:00:19]}  Bxd4 {[%clk 0:00:45]} 30. Ra1 {[%clk 0:00:15]}  Rxc3 {[%clk 0:00:26]} 31. Rxc3 {[%clk 0:00:12]}  Qc5 {[%clk 0:00:26]} 32. Rd1 {[%clk 0:00:08]}  Bf6 {[%clk 0:00:25]} 33. Rd2 {[%clk 0:00:06]}  Qd6 {[%clk 0:00:20]} 34. Kc2 {[%clk 0:00:06]}  Qxh2 {[%clk 0:00:20]} 35. Rg3 {[%clk 0:00:06]}  Qh5 {[%clk 0:00:19]} 36. Rf3 {[%clk 0:00:06]}  Qe5 {[%clk 0:00:17]} 37. Qd3+ {[%clk 0:00:04]}  g6 {[%clk 0:00:17]} 38. Rxf6 {[%clk 0:00:05]}  Qxf6 {[%clk 0:00:17]} 39. g3 {[%clk 0:00:05]}  h5 {[%clk 0:00:17]} 40. Qc3 {[%clk 0:00:05]}  Qf5+ {[%clk 0:00:16]} 41. Kb2 {[%clk 0:00:06]}  e5 {[%clk 0:00:16]} 42. Rxd5 {[%clk 0:00:05]}  Qxf2+ {[%clk 0:00:17]} 43. Rd2 {[%clk 0:00:05]}  Qb6+ {[%clk 0:00:16]} 44. Kc2 {[%clk 0:00:06]}  Qe6 {[%clk 0:00:16]} 45. Re2 {[%clk 0:00:06]}  Qf5+ {[%clk 0:00:15]} 46. Kd2 {[%clk 0:00:06]}  Qg5+ {[%clk 0:00:14]} 47. Qe3 {[%clk 0:00:06]}  Qd8+ {[%clk 0:00:15]} 48. Ke1 {[%clk 0:00:06]}  f6 {[%clk 0:00:13]} 49. Qxa7+ {[%clk 0:00:06]}  Kh6 {[%clk 0:00:14]} 50. Qe3+ {[%clk 0:00:05]}  g5 {[%clk 0:00:13]} 51. Rd2 {[%clk 0:00:06]}  Qa8 {[%clk 0:00:12]} 52. Kf2 {[%clk 0:00:06]}  Qh1 {[%clk 0:00:11]} 53. Qf3 {[%clk 0:00:06]}  Qxf3+ {[%clk 0:00:10]} 54. Kxf3 {[%clk 0:00:06]}  Kg6 {[%clk 0:00:10]} 55. Ke4 {[%clk 0:00:05]}  g4 {[%clk 0:00:10]} 56. Rd8 {[%clk 0:00:05]}  Kg5 {[%clk 0:00:03]} 57. Rg8+ {[%clk 0:00:05]}  Kh6 {[%clk 0:00:03]} 58. Kf5 {[%clk 0:00:06]}  Kh7 {[%clk 0:00:04]} 59. Rf8 {[%clk 0:00:06]}  Kg7 {[%clk 0:00:04]} 60. Rxf6 {[%clk 0:00:06]}  e4 {[%clk 0:00:05]} 61. Rg6+ {[%clk 0:00:06]}  Kh7 {[%clk 0:00:05]} 62. Re6 {[%clk 0:00:06]}  h4 {[%clk 0:00:06]} 63. gxh4 {[%clk 0:00:06]}  g3 {[%clk 0:00:06]} 64. Rxe4 {[%clk 0:00:06]}  g2 {[%clk 0:00:06]} 65. Rg4 {[%clk 0:00:07]}  Kh6 {[%clk 0:00:07]} 66. Rxg2 {[%clk 0:00:07]}  Kh5 {[%clk 0:00:08]} 67. Rg4 {[%clk 0:00:07]}  Kh6 {[%clk 0:00:08]} 68. Rg5 {[%clk 0:00:08]}  Kh7 {[%clk 0:00:08]} 69. Kf6 {[%clk 0:00:08]}  Kh6 {[%clk 0:00:09]} 70. Kf7 {[%clk 0:00:09]}  Kh7 {[%clk 0:00:09]} 71. Rh5# {[%clk 0:00:10]} 1-0


[Site "https://www.chess.com"]

[Event "Titled Tuesday Blitz April 26 Early 2022"]
[White "Cunha, Lucas Aguiar"]
[Black "Chernomordik, Pavel"]
[WhiteFideId "2125404"]
[BlackFideId "2804530"]
[WhiteElo "2361"]
[BlackElo "2220"]
[Result "0-1"]
[Round "09"]
[TimeControl "180+1"]
[Date "2022.04.26"]
[WhiteClock "0:00:03"]
[BlackClock "0:00:10"]

1. e4 {[%clk 0:03:00]}  g6 {[%clk 0:03:00]} 2. d4 {[%clk 0:03:00]}  Bg7 {[%clk 0:02:56]} 3. Nc3 {[%clk 0:02:59]}  d6 {[%clk 0:02:53]} 4. Be3 {[%clk 0:02:58]}  a6 {[%clk 0:02:53]} 5. a4 {[%clk 0:02:58]}  b6 {[%clk 0:02:53]} 6. h3 {[%clk 0:02:57]}  Bb7 {[%clk 0:02:53]} 7. f4 {[%clk 0:02:52]}  e6 {[%clk 0:02:46]} 8. Nf3 {[%clk 0:02:53]}  Nd7 {[%clk 0:02:44]} 9. Bc4 {[%clk 0:02:46]}  Ne7 {[%clk 0:02:40]} 10. O-O {[%clk 0:02:44]}  d5 {[%clk 0:02:31]} 11. exd5 {[%clk 0:02:39]}  exd5 {[%clk 0:02:25]} 12. Bd3 {[%clk 0:02:38]}  c5 {[%clk 0:02:23]} 13. Bf2 {[%clk 0:02:32]}  O-O {[%clk 0:02:15]} 14. Re1 {[%clk 0:02:18]}  Re8 {[%clk 0:02:11]} 15. Qd2 {[%clk 0:02:04]}  c4 {[%clk 0:02:03]} 16. Bf1 {[%clk 0:02:04]}  Nf5 {[%clk 0:02:01]} 17. g4 {[%clk 0:02:01]}  Nd6 {[%clk 0:01:59]} 18. Ne5 {[%clk 0:01:45]}  f6 {[%clk 0:01:45]} 19. Nxd7 {[%clk 0:01:41]}  Qxd7 {[%clk 0:01:45]} 20. Bg2 {[%clk 0:01:42]}  Ne4 {[%clk 0:01:40]} 21. Nxe4 {[%clk 0:01:39]}  dxe4 {[%clk 0:01:40]} 22. Qb4 {[%clk 0:01:30]}  Qc7 {[%clk 0:01:27]} 23. Rad1 {[%clk 0:01:24]}  Qxf4 {[%clk 0:01:24]} 24. Qxb6 {[%clk 0:01:19]}  Bd5 {[%clk 0:01:23]} 25. Qa5 {[%clk 0:01:14]}  Qd6 {[%clk 0:01:11]} 26. Qc5 {[%clk 0:01:10]}  Rad8 {[%clk 0:01:08]} 27. Bf1 {[%clk 0:00:55]}  Bf8 {[%clk 0:00:53]} 28. Qa5 {[%clk 0:00:39]}  f5 {[%clk 0:00:43]} 29. gxf5 {[%clk 0:00:33]}  gxf5 {[%clk 0:00:42]} 30. Bg2 {[%clk 0:00:24]}  Kh8 {[%clk 0:00:37]} 31. Qc3 {[%clk 0:00:20]}  f4 {[%clk 0:00:33]} 32. Kh2 {[%clk 0:00:08]}  Bh6 {[%clk 0:00:25]} 33. Bh4 {[%clk 0:00:08]}  Rg8 {[%clk 0:00:23]} 34. Bf3 {[%clk 0:00:04]}  exf3 {[%clk 0:00:19]} 35. Re5 {[%clk 0:00:05]}  Qg6 {[%clk 0:00:17]} 36. Qd2 {[%clk 0:00:03]}  Qg2+ {[%clk 0:00:15]} 37. Qxg2 {[%clk 0:00:03]}  Rxg2+ {[%clk 0:00:14]} 38. Kh1 {[%clk 0:00:04]}  Rd7 {[%clk 0:00:14]} 39. Bf6+ {[%clk 0:00:03]}  Kg8 {[%clk 0:00:14]} 40. Rde1 {[%clk 0:00:02]}  Kf7 {[%clk 0:00:13]} 41. Bh4 {[%clk 0:00:02]}  f2 {[%clk 0:00:13]} 42. Re7+ {[%clk 0:00:03]}  Rxe7 {[%clk 0:00:12]} 43. Rxe7+ {[%clk 0:00:03]}  Kg6 {[%clk 0:00:13]} 44. Re6+ {[%clk 0:00:02]}  Kh5 {[%clk 0:00:10]} 45. Re5+ {[%clk 0:00:02]}  Kxh4 {[%clk 0:00:10]} 46. Rxd5 {[%clk 0:00:03]}  f1=Q# {[%clk 0:00:10]} 0-1


[Site "https://www.chess.com"]

[Event "Titled Tuesday Blitz April 26 Early 2022"]
[White "D`Arruda, Ricardo D."]
[Black "Winkels, Marcel"]
[WhiteFideId "100692"]
[BlackFideId "1003887"]
[WhiteElo "2393"]
[BlackElo "1900"]
[Result "0-1"]
[Round "09"]
[TimeControl "180+1"]
[Date "2022.04.26"]
[WhiteClock "0:00:01"]
[BlackClock "0:00:13"]

1. d4 {[%clk 0:02:53]}  Nf6 {[%clk 0:02:58]} 2. Nf3 {[%clk 0:02:54]}  c5 {[%clk 0:02:57]} 3. d5 {[%clk 0:02:53]}  b5 {[%clk 0:02:56]} 4. c4 {[%clk 0:02:52]}  Bb7 {[%clk 0:02:53]} 5. a4 {[%clk 0:02:49]}  Qa5+ {[%clk 0:02:51]} 6. Bd2 {[%clk 0:02:35]}  b4 {[%clk 0:02:51]} 7. g3 {[%clk 0:02:29]}  e6 {[%clk 0:02:43]} 8. e4 {[%clk 0:02:11]}  Nxe4 {[%clk 0:02:30]} 9. Bg2 {[%clk 0:02:11]}  Be7 {[%clk 0:02:19]} 10. O-O {[%clk 0:02:08]}  O-O {[%clk 0:02:17]} 11. Re1 {[%clk 0:02:00]}  Nf6 {[%clk 0:02:15]} 12. Bf4 {[%clk 0:01:42]}  Nh5 {[%clk 0:01:43]} 13. Be5 {[%clk 0:01:06]}  Bf6 {[%clk 0:01:42]} 14. Nbd2 {[%clk 0:00:44]}  exd5 {[%clk 0:01:30]} 15. cxd5 {[%clk 0:00:37]}  Qd8 {[%clk 0:01:10]} 16. Nc4 {[%clk 0:00:33]}  Bxe5 {[%clk 0:01:08]} 17. Nfxe5 {[%clk 0:00:34]}  Nf6 {[%clk 0:01:03]} 18. Nd6 {[%clk 0:00:33]}  Bc8 {[%clk 0:00:49]} 19. Ndxf7 {[%clk 0:00:22]}  Rxf7 {[%clk 0:00:45]} 20. Nxf7 {[%clk 0:00:23]}  Kxf7 {[%clk 0:00:44]} 21. d6 {[%clk 0:00:24]}  Nc6 {[%clk 0:00:42]} 22. Qb3+ {[%clk 0:00:21]}  Kg6 {[%clk 0:00:22]} 23. Qc2+ {[%clk 0:00:16]}  Kf7 {[%clk 0:00:21]} 24. Qc4+ {[%clk 0:00:16]}  Kg6 {[%clk 0:00:20]} 25. Bxc6 {[%clk 0:00:10]}  dxc6 {[%clk 0:00:19]} 26. Re7 {[%clk 0:00:11]}  Kh6 {[%clk 0:00:17]} 27. Qh4+ {[%clk 0:00:10]}  Kg6 {[%clk 0:00:16]} 28. Rd1 {[%clk 0:00:07]}  Bd7 {[%clk 0:00:14]} 29. g4 {[%clk 0:00:01]}  h6 {[%clk 0:00:13]} 0-1


[Site "https://www.chess.com"]

[Event "Titled Tuesday Blitz April 26 Early 2022"]
[White "De Arruda, Leandro Formes"]
[Black "Sanchez, Robert"]
[WhiteFideId "22722009"]
[BlackFideId "2034360"]
[WhiteElo "1852"]
[BlackElo "2408"]
[Result "0-1"]
[Round "09"]
[TimeControl "180+1"]
[Date "2022.04.26"]
[WhiteClock "0:00:02"]
[BlackClock "0:00:39"]

1. d4 {[%clk 0:03:00]}  d5 {[%clk 0:02:59]} 2. Nf3 {[%clk 0:03:00]}  c6 {[%clk 0:03:00]} 3. e3 {[%clk 0:02:59]}  Bf5 {[%clk 0:02:57]} 4. Nh4 {[%clk 0:02:57]}  Be6 {[%clk 0:02:51]} 5. Bd3 {[%clk 0:02:54]}  h6 {[%clk 0:02:49]} 6. f4 {[%clk 0:02:50]}  Nf6 {[%clk 0:02:49]} 7. f5 {[%clk 0:02:44]}  Bc8 {[%clk 0:02:45]} 8. O-O {[%clk 0:02:44]}  e6 {[%clk 0:02:39]} 9. fxe6 {[%clk 0:02:41]}  Bxe6 {[%clk 0:02:39]} 10. Nf5 {[%clk 0:02:36]}  Nbd7 {[%clk 0:02:35]} 11. Nd2 {[%clk 0:02:25]}  Qc7 {[%clk 0:02:30]} 12. e4 {[%clk 0:02:11]}  dxe4 {[%clk 0:02:29]} 13. Nxe4 {[%clk 0:02:12]}  Nxe4 {[%clk 0:02:29]} 14. Bxe4 {[%clk 0:02:12]}  Nf6 {[%clk 0:02:25]} 15. Bd3 {[%clk 0:02:08]}  O-O-O {[%clk 0:02:24]} 16. Bf4 {[%clk 0:02:02]}  Qb6 {[%clk 0:02:22]} 17. c3 {[%clk 0:01:54]}  Nd5 {[%clk 0:02:19]} 18. Bg3 {[%clk 0:01:43]}  g6 {[%clk 0:02:19]} 19. Nh4 {[%clk 0:01:04]}  Ne3 {[%clk 0:02:17]} 20. Qe2 {[%clk 0:00:54]}  Nxf1 {[%clk 0:02:17]} 21. Rxf1 {[%clk 0:00:55]}  Bd6 {[%clk 0:02:06]} 22. Bxd6 {[%clk 0:00:47]}  Rxd6 {[%clk 0:02:07]} 23. Nf3 {[%clk 0:00:45]}  Rdd8 {[%clk 0:01:50]} 24. b3 {[%clk 0:00:31]}  Bg4 {[%clk 0:01:45]} 25. Qe7 {[%clk 0:00:19]}  Bxf3 {[%clk 0:01:43]} 26. Rxf3 {[%clk 0:00:20]}  Rd7 {[%clk 0:01:32]} 27. Qe5 {[%clk 0:00:16]}  Rhd8 {[%clk 0:01:28]} 28. Qf4 {[%clk 0:00:12]}  h5 {[%clk 0:01:23]} 29. Bc4 {[%clk 0:00:11]}  Qc7 {[%clk 0:01:04]} 30. Qxc7+ {[%clk 0:00:10]}  Kxc7 {[%clk 0:01:04]} 31. Rxf7 {[%clk 0:00:09]}  Rxf7 {[%clk 0:01:03]} 32. Bxf7 {[%clk 0:00:10]}  Rd6 {[%clk 0:01:01]} 33. Bc4 {[%clk 0:00:08]}  g5 {[%clk 0:01:00]} 34. Kf2 {[%clk 0:00:08]}  Rf6+ {[%clk 0:01:00]} 35. Ke3 {[%clk 0:00:08]}  Kd6 {[%clk 0:01:00]} 36. Be2 {[%clk 0:00:07]}  h4 {[%clk 0:01:00]} 37. h3 {[%clk 0:00:06]}  b6 {[%clk 0:00:58]} 38. Bf3 {[%clk 0:00:06]}  c5 {[%clk 0:00:58]} 39. Ke4 {[%clk 0:00:04]}  cxd4 {[%clk 0:00:57]} 40. Kxd4 {[%clk 0:00:05]}  Rf4+ {[%clk 0:00:56]} 41. Ke3 {[%clk 0:00:05]}  Rf8 {[%clk 0:00:55]} 42. Kd3 {[%clk 0:00:06]}  Ke5 {[%clk 0:00:54]} 43. Ke3 {[%clk 0:00:05]}  Rc8 {[%clk 0:00:53]} 44. c4 {[%clk 0:00:04]}  Rc5 {[%clk 0:00:52]} 45. Bb7 {[%clk 0:00:04]}  Rc7 {[%clk 0:00:49]} 46. Bf3 {[%clk 0:00:03]}  Re7 {[%clk 0:00:48]} 47. Kd3 {[%clk 0:00:03]}  Kf4 {[%clk 0:00:48]} 48. Kd4 {[%clk 0:00:03]}  Re1 {[%clk 0:00:43]} 49. b4 {[%clk 0:00:03]}  Ra1 {[%clk 0:00:41]} 50. c5 {[%clk 0:00:02]}  bxc5+ {[%clk 0:00:41]} 51. bxc5 {[%clk 0:00:03]}  Rxa2 {[%clk 0:00:40]} 52. c6 {[%clk 0:00:04]}  Rc2 {[%clk 0:00:39]} 53. Kd5 {[%clk 0:00:03]}  a5 {[%clk 0:00:39]} 54. Kd6 {[%clk 0:00:02]}  a4 {[%clk 0:00:39]} 0-1


[Site "https://www.chess.com"]